bitfinex/quotes_SOLUSD_20240725
["timestamp","ask_amount","ask_price","bid_price","bid_amount"]
[1721883734158,1.15839189,172.58,172.46,1.15941744]
[1721883734750,1.15839189,172.57,172.45,15.8764]
[1721883734959,1.15839189,172.56,172.45,15.8764]
[1721883735344,6.95369189,172.56,172.45,15.8764]
[1721883735533,25.7954,172.55,172.45,15.8764]
[1721883735733,1.15839189,172.54,172.45,15.8764]
[1721883736139,46.15839189,172.54,172.45,15.8764]
[1721883736656,5.7961,172.53,172.45,15.8764]
[1721883736858,1.15839189,172.52,172.45,15.8764]
[1721883737054,1.15839189,172.51,172.45,15.8764]
[1721883738040,66.15839189,172.51,172.41,21.7714]
[1721883738434,71.95519189,172.51,172.41,21.7714]
[1721883738729,5.7971,172.5,172.41,15.384]
[1721883738946,45.0,172.49,172.41,15.384]
[1721883739127,1.15839189,172.48,172.41,15.384]
[1721883739747,50.21839189,172.48,172.37,22.1344]
[1721883740052,50.7981,172.47,172.37,22.1344]
[1721883740251,45.0,172.49,172.37,22.1344]
[1721883740252,45.0,172.49,172.38,1.16013052]
[1721883740556,1.15839189,172.48,172.37,22.1344]
[1721883740726,21.15839189,172.48,172.37,22.1344]
[1721883740930,45.0,172.47,172.37,22.1344]
[1721883741149,1.15839189,172.46,172.37,16.0305]
[1721883741350,1.15839189,172.45,172.37,16.0305]
[1721883741539,1.15839189,172.45,172.33,16.6617]
[1721883741740,46.15839189,172.45,172.33,16.6617]
[1721883742143,1.15839189,172.45,172.33,16.6617]
[1721883742353,46.15839189,172.45,172.33,16.6617]
[1721883742649,46.15839189,172.45,172.33,17.82196366]
[1721883743047,51.95719189,172.45,172.33,17.82196366]
[1721883743435,51.95719189,172.45,172.33,16.6617]
[1721883744333,46.15839189,172.45,172.33,16.6617]
[1721883744542,25.7991,172.44,172.33,16.6617]
[1721883744829,1.15839189,172.43,172.33,16.6617]
[1721883745050,1.15839189,172.42,172.33,16.6617]
[1721883745358,66.15839189,172.42,172.33,16.6617]
[1721883745529,20.0,172.42,172.33,16.6617]
[1721883746033,21.15839189,172.42,172.33,16.6617]
[1721883746353,99.8604,172.41,172.33,16.6617]
[1721883746667,1.15839189,172.4,172.33,16.6617]
[1721883746832,1.15839189,172.39,172.33,16.6617]
[1721883748959,5.8011,172.38,172.32,0.8118603]
[1721883749252,1.15839189,172.37,172.32,0.8118603]
[1721883749446,6.95999189,172.37,172.32,0.8118603]
[1721883749646,20.0,172.36,172.32,0.8118603]
[1721883749849,1.15839189,172.35,172.32,0.8118603]
[1721883750044,30.21839189,172.35,172.32,0.8118603]
[1721883750241,20.0,172.36,172.32,0.8118603]
[1721883750851,25.8018,172.36,172.32,0.8118603]
[1721883751236,6.96059189,172.35,172.32,0.8118603]
[1721883751649,5.8024,172.34,172.32,0.8118603]
[1721883751861,6.96119189,172.33,172.32,0.8118603]
[1721883752172,26.96119189,172.33,172.32,0.8118603]
[1721883752963,21.15839189,172.33,172.32,0.8118603]
[1721883753269,26.96119189,172.33,172.32,0.8118603]
[1721883753467,1.15839189,172.35,172.32,0.8118603]
[1721883753857,26.96059189,172.35,172.32,0.8118603]
[1721883754567,5.8025,172.34,172.32,0.8118603]
[1721883754779,6.96089189,172.34,172.32,0.8118603]
[1721883755072,6.96079189,172.34,172.32,0.8118603]
[1721883755280,389.2,172.39,172.32,0.8118603]
[1721883755485,389.2,172.39,172.32,17.4687603]
[1721883756363,29.06,172.44,172.33,1.16040696]
[1721883756703,15.7982,172.46,172.33,1.16040696]
[1721883756852,418.26,172.47,172.33,1.16040696]
[1721883757182,389.2,172.47,172.33,46.16040696]
[1721883757357,389.2,172.47,172.34,29.06]
[1721883757556,389.2,172.47,172.35,46.16001261]
[1721883757782,389.2,172.47,172.36,1.16001264]
[1721883757955,29.06,172.51,172.36,1.16001264]
[1721883758153,254.1,172.52,172.37,35.7042]
[1721883758352,254.1,172.52,172.38,46.15975289]
[1721883758555,254.1,172.52,172.39,15.9826]
[1721883758853,254.1,172.52,172.4,46.15969199]
[1721883759754,389.2,172.56,172.43,29.06]
[1721883759946,5.7947,172.58,172.44,46.15935215]
[1721883760264,5.7944,172.58,172.45,6.0159]
[1721883760476,5.7947,172.57,172.46,46.15935368]
[1721883760656,1.15839189,172.57,172.45,6.0159]
[1721883761052,5.7952,172.56,172.45,6.0159]
[1721883761278,283.9297,172.61,172.46,1.15946478]
[1721883761279,5.7946,172.58,172.46,1.15946478]
[1721883761473,5.7946,172.58,172.46,46.15946478]
[1721883761979,5.7947,172.57,172.46,46.15946478]
[1721883762374,5.795,172.56,172.46,45.0]
[1721883763671,1.15839189,172.55,172.45,6.0159]
[1721883764289,1.15839189,172.54,172.45,6.0159]
[1721883764690,5.7969,172.51,172.4,6.0813]
[1721883764876,65.0,172.55,172.41,1.15970472]
[1721883765273,20.0,172.55,172.41,1.15970472]
[1721883765488,20.0,172.55,172.4,7.24080318]
[1721883765489,1.15839189,172.54,172.4,7.24080318]
[1721883765796,21.15839189,172.54,172.41,45.0]
[1721883766293,21.15839189,172.54,172.4,6.0813]
[1721883766486,1.15839189,172.54,172.4,6.0813]
[1721883766682,1.15839189,172.53,172.4,6.0813]
[1721883767467,46.15839189,172.53,172.4,6.0813]
[1721883767668,435.35839189,172.53,172.4,6.0813]
[1721883767878,441.55189189,172.53,172.4,6.0813]
[1721883768390,5.7977,172.49,172.4,6.0813]
[1721883768590,1.15839189,172.48,172.4,6.0813]
[1721883768771,6.95609189,172.48,172.4,6.0813]
[1721883769568,1.15839189,172.48,172.4,6.0813]
[1721883769789,21.15839189,172.51,172.4,6.0813]
[1721883769993,5.7977,172.49,172.4,6.0813]
[1721883770199,1.15839189,172.48,172.4,6.0813]
[1721883770696,6.95629189,172.48,172.4,6.0813]
[1721883771380,1.15839189,172.48,172.4,6.0813]
[1721883773589,6.95619189,172.48,172.4,6.0813]
[1721883773997,1.15839189,172.48,172.4,6.0813]
[1721883774184,6.95619189,172.48,172.4,6.0813]
[1721883774511,6.95619189,172.48,172.39,15.9826]
[1721883775188,1.15839189,172.48,172.39,15.9826]
[1721883775509,6.95639189,172.48,172.39,15.9826]
[1721883777511,1.15839189,172.48,172.39,15.9826]
[1721883777802,21.15839189,172.48,172.39,15.9826]
[1721883778002,20.0,172.48,172.4,1.16011434]
[1721883778209,1.15839189,172.51,172.4,1.16011434]
[1721883778388,66.15839189,172.51,172.4,1.16011434]
[1721883778716,71.95509189,172.51,172.39,15.9826]
[1721883779422,71.95509189,172.51,172.4,1.1598917]
[1721883779599,5.7971,172.5,172.4,1.1598917]
[1721883779800,20.0,172.49,172.4,1.1598917]
[1721883780105,20.0,172.49,172.39,15.9826]
[1721883780286,46.15839189,172.51,172.39,15.9826]
[1721883780487,20.0,172.5,172.39,15.9826]
[1721883780682,25.7971,172.5,172.39,15.9826]
[1721883784214,1.15839189,172.49,172.39,15.9826]
[1721883784688,6.95589189,172.49,172.39,15.9826]
[1721883785409,5.7984,172.46,172.39,15.9826]
[1721883785594,1.15839189,172.45,172.39,15.9826]
[1721883786612,21.15839189,172.47,172.39,15.9826]
[1721883787697,26.95659189,172.47,172.39,15.9826]
[1721883788305,20.0,172.47,172.39,15.9826]
[1721883788698,394.997,172.51,172.4,1.16001233]
[1721883788894,5.7972,172.5,172.4,1.16001233]
[1721883789094,5.7974,172.49,172.39,15.9826]
[1721883789411,389.2,172.51,172.39,15.9826]
[1721883789412,6.95619189,172.48,172.39,15.9826]
[1721883789607,1.15839189,172.48,172.39,15.9826]
[1721883789912,1.15839189,172.5,172.39,15.9826]
[1721883790316,389.2,172.51,172.4,1.15989235]
[1721883790705,389.2,172.51,172.4,46.15989235]
[1721883791013,389.2,172.51,172.4,45.0]
[1721883791392,1.15839189,172.5,172.4,45.0]
[1721883791614,6.95559189,172.5,172.4,45.0]
[1721883791807,6.95559189,172.5,172.39,15.9826]
[1721883792415,1.15839189,172.5,172.39,15.9826]
[1721883792713,1.15839189,172.49,172.39,15.9826]
[1721883792914,1.15839189,172.48,172.39,15.9826]
[1721883793118,5.7981,172.47,172.39,15.9826]
[1721883793318,1.15839189,172.46,172.39,15.9826]
[1721883793502,1.15839189,172.45,172.39,15.9826]
[1721883794898,1.15839189,172.44,172.39,15.9826]
[1721883795298,1.15839189,172.47,172.39,15.9826]
[1721883795501,21.15839189,172.47,172.39,15.9826]
[1721883796300,29.11,172.49,172.39,15.9826]
[1721883796623,29.11,172.53,172.39,17.14249486]
[1721883796624,6.95509189,172.52,172.39,17.14249486]
[1721883796797,5.7971,172.5,172.39,17.14249486]
[1721883797398,5.7971,172.5,172.39,15.9826]
[1721883797823,1.15839189,172.49,172.39,15.9826]
[1721883798419,1.15839189,172.48,172.39,15.9826]
[1721883799021,6.95619189,172.48,172.39,15.9826]
[1721883802431,1.15839189,172.48,172.39,15.9826]
[1721883802615,21.15839189,172.48,172.39,15.9826]
[1721883803420,26.95619189,172.48,172.39,15.9826]
[1721883803615,10.45945155,172.47,172.39,15.9826]
[1721883803822,26.95619189,172.48,172.39,15.9826]
[1721883806129,10.4593702,172.47,172.39,15.9826]
[1721883806333,1.15839189,172.46,172.39,15.9826]
[1721883806535,10.4593702,172.47,172.39,15.9826]
[1721883807213,21.15839189,172.48,172.39,15.9826]
[1721883807731,10.4593702,172.47,172.4,1.16000795]
[1721883807907,10.4593702,172.47,172.41,6.0775]
[1721883808112,10.4593702,172.47,172.42,1.15971618]
[1721883808311,10.4593702,172.47,172.43,1.15971633]
[1721883808734,10.4593702,172.47,172.44,15.4242]
[1721883820456,10.4593702,172.47,172.4,15.4211]
[1721883820824,1.15839189,172.46,172.4,15.4211]
[1721883821525,10.4593702,172.47,172.4,15.4211]
[1721883826747,1.15839189,172.46,172.34,16.5782]
[1721883827051,46.15839189,172.46,172.34,16.5782]
[1721883827251,5.7988,172.45,172.34,16.5782]
[1721883827547,6.95719189,172.45,172.34,16.5782]
[1721883828227,14.56,172.42,172.37,14.56]
[1721883828427,14.56,172.43,172.38,14.56]
[1721883828623,14.56,172.44,172.39,14.56]
[1721883833644,1.15839189,172.5,172.41,14.56]
[1721883833840,14.56,172.46,172.41,14.56]
[1721883834044,14.56,172.47,172.42,14.56]
[1721883835750,14.56,172.47,172.36,1.15996374]
[1721883835751,14.56,172.46,172.41,14.56]
[1721883836553,14.56,172.45,172.4,14.56]
[1721883837236,14.56,172.45,172.36,1.15984239]
[1721883837455,14.56,172.45,172.4,14.56]
[1721883839248,14.56,172.42,172.34,16.5782]
[1721883839571,14.56,172.41,172.36,14.56]
[1721883840370,6.95689189,172.46,172.39,14.56]
[1721883840371,14.56,172.43,172.39,14.56]
[1721883840538,389.2,172.5,172.33,1.16014138]
[1721883840539,14.56,172.4,172.33,1.16014138]
[1721883840739,14.56,172.34,172.32,0.8118603]
[1721883841435,14.56,172.33,172.32,0.8118603]
[1721883843853,1.15839189,172.39,172.32,0.8118603]
[1721883844065,14.56,172.33,172.32,0.8118603]
[1721883844264,30.30839189,172.39,172.32,0.8118603]
[1721883848367,6.95869189,172.41,172.32,0.8118603]
[1721883848666,26.95869189,172.41,172.32,0.8118603]
[1721883848844,5.8004,172.4,172.32,0.8118603]
[1721883849240,6.2374,172.38,172.32,0.8118603]
[1721883849446,5.8028,172.33,172.32,0.8118603]
[1721883850242,5.8045,172.28,172.19,15.896]
[1721883850563,29.15,172.31,172.19,15.896]
[1721883850778,26.96249189,172.3,172.19,15.896]
[1721883851852,20.0,172.3,172.19,15.896]
[1721883852275,50.30839189,172.32,172.2,1.16113268]
[1721883852462,50.30839189,172.32,172.19,15.896]
[1721883852646,5.8044,172.29,172.19,15.896]
[1721883852852,1.15839189,172.28,172.19,15.896]
[1721883854458,6.96299189,172.28,172.19,15.896]
[1721883856860,1.15839189,172.28,172.15,22.2007603]
[1721883857054,66.15839189,172.28,172.15,22.2007603]
[1721883857273,82.77629189,172.28,172.15,22.2007603]
[1721883857582,5.8052,172.26,172.15,22.2007603]
[1721883857759,1.15839189,172.25,172.15,22.2007603]
[1721883858783,29.15,172.23,172.15,0.8118603]
[1721883859075,34.9574,172.2,172.15,0.8118603]
[1721883859275,30.30839189,172.2,172.15,0.8118603]
[1721883860161,46.60999189,172.2,172.15,0.8118603]
[1721883860365,65.0,172.19,172.15,0.8118603]
[1721883860587,6.96649189,172.18,172.15,0.8118603]
[1721883861192,20.0,172.19,172.15,0.8118603]
[1721883861387,35.7013,172.24,172.15,0.8118603]
[1721883861694,5.8051,172.26,172.15,17.1494603]
[1721883861869,30.30839189,172.27,172.15,17.1494603]
[1721883862464,5.8052,172.26,172.15,17.1494603]
[1721883862883,36.11319189,172.27,172.15,17.1494603]
[1721883863474,5.8052,172.26,172.15,17.1494603]
[1721883863776,6.96359189,172.26,172.15,17.1494603]
[1721883864262,1.15839189,172.26,172.15,17.1494603]
[1721883864873,36.11319189,172.27,172.15,17.1494603]
[1721883866197,36.11319189,172.27,172.15,18.31091797]
[1721883866366,1.15839189,172.26,172.15,17.1494603]
[1721883866568,16.77799,172.31,172.15,17.1494603]
[1721883866569,389.2,172.33,172.16,30.31144406]
[1721883866763,389.2,172.33,172.19,29.15]
[1721883866981,389.2,172.33,172.23,21.7967]
[1721883867289,395.002,172.36,172.24,45.0]
[1721883867462,396.16039189,172.36,172.24,45.0]
[1721883867862,1.15839189,172.35,172.23,21.7967]
[1721883868067,29.15,172.34,172.23,21.7967]
[1721883868269,5.8034,172.32,172.23,21.7967]
[1721883868469,29.15,172.34,172.16,29.15]
[1721883868470,1.15839189,172.31,172.18,22.7017]
[1721883868689,30.30839189,172.31,172.18,22.7017]
[1721883868996,5.8044,172.29,172.18,22.7017]
[1721883869192,6.96279189,172.29,172.18,22.7017]
[1721883870503,5.8044,172.29,172.18,22.7017]
[1721883870673,25.8045,172.28,172.18,22.7017]
[1721883870999,1.15839189,172.27,172.18,22.7017]
[1721883872176,5.805,172.27,172.15,0.8118603]
[1721883872391,5.8055,172.25,172.15,0.8118603]
[1721883872588,1.15839189,172.3,172.16,7.81273785]
[1721883872767,1.15839189,172.32,172.17,16.2527]
[1721883872967,389.2,172.33,172.18,1.16099827]
[1721883873280,1.15839189,172.32,172.18,1.16099827]
[1721883873686,1.15839189,172.32,172.18,46.16099827]
[1721883874472,389.2,172.33,172.18,46.16099827]
[1721883874677,389.2,172.33,172.19,39.0426]
[1721883874888,389.2,172.33,172.21,15.5823]
[1721883875083,389.2,172.33,172.22,46.16085504]
[1721883875286,389.2,172.37,172.22,46.16085504]
[1721883875478,390.35839189,172.37,172.22,46.16085504]
[1721883876482,5.802,172.36,172.22,46.16085504]
[1721883876793,6.96039189,172.36,172.22,46.16085504]
[1721883876975,5.8023,172.35,172.22,46.16085504]
[1721883877170,6.96069189,172.35,172.22,46.16085504]
[1721883877879,6.96069189,172.35,172.22,45.0]
[1721883878080,5.8023,172.35,172.22,45.0]
[1721883878295,6.96019189,172.36,172.22,45.0]
[1721883878490,389.2,172.35,172.23,1.16086257]
[1721883879070,395.0022,172.35,172.23,1.16086257]
[1721883880282,389.2,172.35,172.23,1.16086257]
[1721883881102,389.2,172.35,172.25,15.3108]
[1721883881391,389.2,172.35,172.26,45.0]
[1721883881570,389.2,172.35,172.27,1.16063896]
[1721883882993,389.2,172.35,172.26,45.0]
[1721883883192,389.2,172.35,172.26,46.16064357]
[1721883883390,389.2,172.35,172.27,1.16064754]
[1721883884298,389.2,172.34,172.27,1.16064754]
[1721883884706,389.2,172.34,172.26,45.0]
[1721883890320,5.8011,172.38,172.26,45.0]
[1721883891503,5.8021,172.35,172.25,15.3108]
[1721883892813,6.96019189,172.36,172.25,15.3108]
[1721883893992,5.8025,172.34,172.25,15.3108]
[1721883894197,1.15839189,172.33,172.25,15.3108]
[1721883894496,6.96089189,172.34,172.25,15.3108]
[1721883894696,1.15839189,172.34,172.25,15.3108]
[1721883896603,6.96089189,172.34,172.25,15.3108]
[1721883898012,5.8028,172.33,172.25,15.3108]
[1721883898209,1.15839189,172.32,172.25,15.3108]
[1721883899032,21.15839189,172.34,172.25,15.3108]
[1721883899701,26.96089189,172.34,172.25,15.3108]
[1721883902023,20.0,172.34,172.25,15.3108]
[1721883902208,30.31839189,172.35,172.25,15.3108]
[1721883902822,36.12049189,172.35,172.25,15.3108]
[1721883903217,1.15839189,172.36,172.25,15.3108]
[1721883903524,6.95889189,172.4,172.26,46.1607242]
[1721883903822,1.15839189,172.4,172.26,46.1607242]
[1721883904008,6.95939189,172.39,172.26,46.1607242]
[1721883904214,6.95939189,172.39,172.26,45.0]
[1721883904529,5.8011,172.38,172.26,45.0]
[1721883905224,6.95989189,172.37,172.26,45.0]
[1721883905406,21.15839189,172.4,172.26,45.0]
[1721883905602,5.8021,172.35,172.25,15.3108]
[1721883905908,29.16,172.38,172.25,15.3108]
[1721883905909,6.96079189,172.34,172.25,15.3108]
[1721883906313,20.0,172.33,172.25,15.3108]
[1721883906516,25.8028,172.33,172.25,15.3108]
[1721883907126,6.96089189,172.34,172.25,15.3108]
[1721883907320,29.16,172.35,172.25,15.3108]
[1721883907532,5.8021,172.36,172.25,15.3108]
[1721883907711,30.31839189,172.38,172.25,16.47157389]
[1721883907907,29.16,172.35,172.25,15.3108]
[1721883908132,5.8031,172.32,172.25,15.3108]
[1721883908333,5.8028,172.33,172.25,15.3108]
[1721883908548,6.03290118,172.38,172.25,15.3108]
[1721883908549,6.03290118,172.38,172.26,6.0179]
[1721883908829,16.74161879,172.44,172.3,21.7235]
[1721883909015,10.46322455,172.43,172.31,16.86581859]
[1721883909220,5.7995,172.43,172.31,16.86581859]
[1721883909418,5.7995,172.43,172.31,15.7056]
[1721883909419,5.8021,172.35,172.31,15.7056]
[1721883909612,11.62161644,172.39,172.31,15.7056]
[1721883909807,29.16,172.37,172.27,16.1529]
[1721883910016,1.15839189,172.36,172.27,16.1529]
[1721883910222,5.8021,172.35,172.27,16.1529]
[1721883910406,10.46739455,172.35,172.27,16.1529]
[1721883910608,1.15839189,172.34,172.27,16.1529]
[1721883911736,11.62643774,172.34,172.27,16.1529]
[1721883911919,10.46804585,172.34,172.27,16.1529]
[1721883912116,1.15839189,172.33,172.27,16.1529]
[1721883912429,10.46776136,172.34,172.27,16.1529]
[1721883912815,1.15839189,172.33,172.27,16.1529]
[1721883914314,14.58,172.31,172.27,16.1529]
[1721883915409,1.15839189,172.38,172.27,16.1529]
[1721883915614,14.58,172.34,172.3,14.58]
[1721883915822,14.58,172.35,172.3,14.58]
[1721883916141,14.58,172.35,172.29,14.58]
[1721883916521,14.58,172.35,172.3,14.58]
[1721883916927,14.58,172.35,172.27,17.3136376]
[1721883916928,14.58,172.35,172.29,14.58]
[1721883917126,14.58,172.32,172.27,30.7329]
[1721883917626,14.58,172.33,172.28,14.58]
[1721883918129,14.58,172.32,172.27,30.7329]
[1721883918326,1.15839189,172.36,172.27,16.1529]
[1721883918735,11.62434536,172.36,172.27,16.1529]
[1721883918909,6.96059189,172.35,172.27,16.1529]
[1721883919347,10.46636032,172.34,172.27,16.1529]
[1721883920029,1.15839189,172.33,172.27,16.1529]
[1721883920735,10.46701145,172.34,172.27,16.1529]
[1721883921127,36.12059189,172.35,172.27,16.1529]
[1721883921352,10.46700678,172.34,172.27,16.1529]
[1721883922017,20.93401824,172.41,172.27,17.31356074]
[1721883922214,10.46433591,172.4,172.28,45.0]
[1721883922433,10.46433591,172.4,172.29,1.16036484]
[1721883922815,10.46433591,172.4,172.3,1.16035132]
[1721883923011,10.46433591,172.4,172.29,1.16035667]
[1721883923525,10.46433591,172.4,172.3,1.16033743]
[1721883923920,10.46433591,172.4,172.32,16.6041]
[1721883924122,20.93401824,172.41,172.32,16.6041]
[1721883924123,20.93401824,172.41,172.33,46.16017495]
[1721883925319,20.93401824,172.41,172.33,45.0]
[1721883925517,20.93401824,172.41,172.33,46.16006458]
[1721883927461,20.93401824,172.41,172.35,6.1521]
[1721883927660,20.93401824,172.41,172.36,46.15992756]
[1721883928244,20.93401824,172.41,172.36,46.15996303]
[1721883930369,20.93401824,172.41,172.36,45.0]
[1721883930941,5.7977,172.48,172.36,45.0]
[1721883931166,5.7977,172.48,172.37,1.15980039]
[1721883931167,16.2583162,172.48,172.37,1.15980039]
[1721883931357,10.4606162,172.48,172.37,1.15980039]
[1721883932472,29.16,172.49,172.36,45.0]
[1721883932673,5.7981,172.47,172.36,45.0]
[1721883932977,5.7981,172.47,172.36,46.15991211]
[1721883933157,5.7984,172.46,172.36,45.0]
[1721883933482,5.798,172.48,172.37,1.16002081]
[1721883933772,34.958,172.48,172.36,46.15989963]
[1721883933951,34.958,172.48,172.36,45.0]
[1721883934376,34.958,172.48,172.36,46.1598992]
[1721883935282,10.4615948,172.47,172.35,6.1521]
[1721883935484,5.7987,172.46,172.36,1.16008769]
[1721883935783,5.7981,172.47,172.35,7.31209927]
[1721883936075,5.7981,172.47,172.36,1.15999848]
[1721883936249,16.2596663,172.47,172.36,1.15999848]
[1721883936547,5.7981,172.47,172.36,1.15999848]
[1721883936743,5.7981,172.47,172.36,46.15999848]
[1721883937154,16.25950115,172.47,172.36,46.15999848]
[1721883937376,16.25975018,172.47,172.36,46.15999848]
[1721883937545,34.9578,172.48,172.36,46.15999848]
[1721883937976,5.7981,172.47,172.36,46.15999848]
[1721883938283,34.9578,172.48,172.36,46.15999848]
[1721883938644,10.4619844,172.47,172.36,46.15999848]
[1721883938872,20.92396881,172.53,172.36,46.15999848]
[1721883939076,29.16,172.48,172.36,46.15999848]
[1721883939370,29.16,172.48,172.3,36.75938373]
[1721883939371,29.16,172.41,172.32,14.5078]
[1721883939572,29.16,172.41,172.36,5.8017]
[1721883940154,5.8004,172.4,172.36,5.8017]
[1721883940678,34.9601,172.41,172.36,5.8017]
[1721883941684,34.9601,172.41,172.37,5.8014]
[1721883941968,29.16,172.41,172.37,5.8014]
[1721883942561,34.9601,172.41,172.37,5.8014]
[1721883943182,34.9601,172.41,172.35,20.307]
[1721883943557,34.9601,172.41,172.36,5.8017]
[1721883944175,27.96727467,172.47,172.38,14.5023]
[1721883944466,27.96727467,172.47,172.39,1.16001172]
[1721883944467,56.896,172.47,172.39,1.16001172]
[1721883944672,56.896,172.47,172.29,35.6743]
[1721883944673,5.7985,172.46,172.41,5.8]
[1721883945052,5.7988,172.45,172.4,20.3009]
[1721883945671,5.7988,172.45,172.41,5.8]
[1721883946465,5.7984,172.46,172.41,5.8]
[1721883947679,21.9379,172.47,172.33,1.15999051]
[1721883947864,31.50089294,172.49,172.42,14.4987]
[1721883948056,20.0,172.48,172.43,5.7994]
[1721883948579,31.50089294,172.49,172.43,5.7994]
[1721883948580,389.2,172.5,172.43,1.1598873]
[1721883948764,389.2,172.5,172.47,5.7977]
[1721883949078,6.6443,172.51,172.47,5.7977]
[1721883949767,6.6443,172.51,172.47,14.4945]
[1721883950366,12.4411,172.51,172.47,14.4945]
[1721883951656,5.7971,172.5,172.45,5.7987]
[1721883952274,12.4411,172.51,172.46,5.7984]
[1721883953173,6.6443,172.51,172.44,20.2965]
[1721883953371,6.6443,172.51,172.45,5.7986]
[1721883953773,2.31258961,172.54,172.46,14.4952]
[1721883953964,59.61991691,172.54,172.46,14.4952]
[1721883954159,27.19578397,172.53,172.46,14.4952]
[1721883954360,10.45991691,172.52,172.48,14.4937]
[1721883954659,29.16,172.54,172.48,14.4937]
[1721883954893,10.45898493,172.53,172.48,14.4937]
[1721883955172,29.16,172.54,172.48,14.4937]
[1721883955874,34.9559,172.54,172.49,5.7971]
[1721883956472,34.9559,172.54,172.5,5.797]
[1721883956473,29.16,172.54,172.5,5.797]
[1721883957663,21.6014,172.59,172.44,6.3353]
[1721883957975,21.6014,172.59,172.46,16.5118]
[1721883958170,21.6014,172.59,172.47,1.15928165]
[1721883959281,6.02854586,172.62,172.49,29.16]
[1721883959493,389.2,172.64,172.59,5.7937]
[1721883959678,5.792,172.65,172.6,5.7936]
[1721883960275,5.7924,172.64,172.5,1.15892236]
[1721883960585,22.3917,172.68,172.57,5.7946]
[1721883960586,5.7931,172.62,172.57,5.7946]
[1721883961193,5.7931,172.62,172.48,21.3676]
[1721883961194,5.7942,172.59,172.53,5.7958]
[1721883961383,5.7937,172.6,172.55,5.7954]
[1721883961765,5.7934,172.61,172.57,5.7947]
[1721883961965,5.7934,172.61,172.48,22.52671112]
[1721883961966,5.7919,172.66,172.56,15.2251]
[1721883962180,5.7919,172.66,172.6,5.7936]
[1721883962487,29.16,172.64,172.5,15.2251]
[1721883962668,29.16,172.64,172.51,45.0]
[1721883962996,5.7931,172.62,172.57,5.7946]
[1721883963866,15.4169,172.63,172.5,15.2251]
[1721883964080,45.0,172.62,172.5,15.2251]
[1721883964578,15.4169,172.63,172.51,1.15905226]
[1721883964784,15.4169,172.63,172.6,5.7934]
[1721883966174,15.4169,172.63,172.61,5.7933]
[1721883967476,29.16,172.64,172.61,5.7933]
[1721883967791,29.16,172.64,172.51,46.15905226]
[1721883968899,29.16,172.64,172.41,26.10304302]
[1721883968900,29.16,172.53,172.4,16.1435]
[1721883969197,6.111,172.55,172.4,16.1435]
[1721883969198,29.16,172.5,172.4,16.1435]
[1721883969401,29.16,172.5,172.43,5.7993]
[1721883969611,5.7975,172.49,172.41,5.7997]
[1721883969909,34.9571,172.5,172.43,5.7994]
[1721883970198,29.16,172.5,172.43,5.7994]
[1721883971205,29.16,172.47,172.35,16.1435]
[1721883971579,5.7988,172.45,172.39,5.8004]
[1721883972596,5.7988,172.45,172.4,5.8003]
[1721883972806,29.16,172.47,172.4,5.8003]
[1721883972807,5.7984,172.46,172.4,5.8003]
[1721883973111,29.16,172.47,172.38,5.8009]
[1721883973316,5.7986,172.46,172.41,5.8001]
[1721883973502,35.7485,172.47,172.35,17.30352491]
[1721883973820,41.5467,172.47,172.35,16.1435]
[1721883974221,6.5885,172.47,172.44,5.7988]
[1721883974720,29.16,172.46,172.35,17.30339606]
[1721883974923,29.16,172.46,172.35,16.1435]
[1721883975696,29.16,172.46,172.42,5.7997]
[1721883976016,34.9584,172.46,172.41,5.7999]
[1721883976631,29.16,172.46,172.36,1.16007783]
[1721883976921,6.5885,172.47,172.36,1.16007783]
[1721883976922,22.2468,172.52,172.5,5.797]
[1721883977213,22.2468,172.52,172.51,5.7967]
[1721883977428,29.16,172.54,172.51,5.7967]